bitfinex-derivatives/quotes_SOLF0:USTF0_20250820
["timestamp","ask_amount","ask_price","bid_price","bid_amount"]
[1755675121952,3.01,180.87,180.85,8.5692]
[1755675122748,3.01,180.88,180.85,8.5692]
[1755675123849,3.01,180.94,180.83,3.04]
[1755675124056,3.01,180.94,180.86,3.04]
[1755675124454,8.5367,180.94,180.89,5.5278]
[1755675124753,3.01,180.93,180.89,8.5678]
[1755675125252,3.01,180.92,180.89,8.5678]
[1755675126251,3.01,180.97,180.85,5.47714083]
[1755675126849,5.5273,180.92,180.87,5.5283]
[1755675127256,3.01,180.89,180.87,5.5283]
[1755675128056,3.01,180.91,180.88,5.5282]
[1755675128757,5.5273,180.92,180.88,5.5282]
[1755675128960,3.01,180.91,180.88,5.5282]
[1755675129160,3.01,180.9,180.88,5.5282]
[1755675129459,3.01,180.9,180.87,8.5684]
[1755675131962,3.01,180.9,180.88,5.5283]
[1755675132162,5.5268,180.93,180.88,8.5683]
[1755675132362,3.01,180.91,180.88,8.5683]
[1755675132765,5.5268,180.93,180.88,5.5283]
[1755675132962,394.20843832,181.03,180.89,3.04]
[1755675132963,3.01,181.0,180.89,3.04]
[1755675133364,5.5251,180.99,180.93,5.5265]
[1755675133565,5.5251,180.99,180.92,3.04]
[1755675134063,3.01,181.0,180.94,5.5264]
[1755675134266,3.01,181.0,180.92,3.04]
[1755675134765,3.01,180.99,180.95,5.5259]
[1755675134964,3.01,180.98,180.95,5.5259]
[1755675135165,3.01,180.96,180.95,5.5259]
[1755675136370,3.01,180.98,180.96,5.5258]
[1755675137371,3.01,180.98,180.91,2.43714083]
[1755675137572,5.44714083,181.09,180.95,3.04]
[1755675137769,3.01,181.08,180.98,3.04]
[1755675138271,5.5225,181.07,181.01,5.5243]
[1755675138662,2.43714083,181.09,181.01,5.5243]
[1755675138870,3.01,181.04,181.01,5.5243]
[1755675139871,3.01,181.03,181.01,5.5243]
[1755675140875,3.01,181.03,181.0,5.5246]
[1755675141469,3.01,181.02,181.0,5.5246]
[1755675142373,3.01,181.03,180.97,3.04]
[1755675143878,3.01,181.02,180.98,8.565]
[1755675144275,3.01,181.08,180.98,8.565]
[1755675144983,3.01,181.08,180.99,5.5248]
[1755675145370,5.5236,181.04,180.99,5.5248]
[1755675145777,3.01,181.02,180.99,5.5248]
[1755675148285,5.5236,181.04,180.99,5.5248]
[1755675148484,2.9,181.02,180.99,5.5248]
[1755675149084,2.9,181.07,180.96,2.43714083]
[1755675149281,2.9,181.07,180.99,2.43714083]
[1755675149495,2.9,181.07,181.0,2.96]
[1755675152004,8.4228,181.06,181.02,2.96]
[1755675152996,2.9,181.05,181.02,0.04040006]
[1755675153389,2.9,181.05,181.02,3.00040006]
[1755675155796,2.9,181.04,181.02,0.04040006]
[1755675156796,2.43714083,181.11,181.02,0.04040006]
[1755675156992,2.9,181.1,181.03,2.96]
[1755675157889,2.9,181.05,181.02,0.04040006]
[1755675158495,2.43714083,181.11,181.02,0.04040006]
[1755675158795,2.9,181.09,181.02,3.00040006]
[1755675159295,2.9,181.09,181.02,0.04040006]
[1755675161500,2.9,181.09,181.02,3.00040006]
[1755675162004,8.4227,181.07,181.03,2.96]
[1755675162400,2.9,181.06,181.03,2.96]
[1755675162802,2.9,181.05,181.02,0.04040006]
[1755675163109,2.9,181.09,181.02,0.04040006]
[1755675163604,5.5232,181.05,181.02,0.04040006]
[1755675163800,2.43714083,181.08,181.02,0.04040006]
[1755675164006,2.9,181.07,181.02,0.04040006]
[1755675164398,5.5237,181.03,181.02,0.04040006]
[1755675164605,8.4237,181.03,181.02,0.04040006]
[1755675166206,5.5235,181.04,181.02,0.04040006]
[1755675167008,5.5235,181.04,181.02,3.00040006]
[1755675167213,2.9,181.09,181.03,2.96]
[1755675167414,371.4,181.13,181.03,2.96]
[1755675167611,5.5212,181.12,181.06,5.5225]
[1755675167907,371.4,181.13,181.06,8.4825]
[1755675168107,374.3,181.13,181.07,0.03781145]
[1755675168515,2.9,181.12,181.07,0.03781145]
[1755675168714,371.4,181.13,181.07,0.03781145]
[1755675168913,2.9,181.09,181.07,0.03781145]
[1755675169615,8.4221,181.09,181.07,0.03781145]
[1755675169810,2.9,181.12,181.07,0.03781145]
[1755675170114,2.9,181.1,181.07,0.03781145]
[1755675170313,5.522,181.09,181.07,0.03781145]
[1755675170514,371.4,181.13,181.07,0.03781145]
[1755675170713,5.5221,181.09,181.07,0.03781145]
[1755675171409,5.5216,181.1,181.07,2.99781145]
[1755675173320,5.5219,181.09,181.07,2.99781145]
[1755675174517,8.4215,181.11,181.08,2.96]
[1755675174824,2.9,181.11,181.08,2.96]
[1755675175116,371.4,181.13,181.07,0.03781145]
[1755675175415,2.9,181.12,181.07,0.03781145]
[1755675175808,371.4,181.13,181.07,0.03781145]
[1755675176012,2.9,181.11,181.07,0.03781145]
[1755675176207,5.5221,181.08,181.07,0.03781145]
[1755675176415,8.4221,181.08,181.07,0.03781145]
[1755675177124,5.5221,181.08,181.07,0.03781145]
[1755675177618,5.522,181.09,181.07,0.03781145]
[1755675177817,134.88,181.1,181.09,2.96]
[1755675178527,140.4016,181.1,181.09,2.96]
[1755675178819,134.88,181.1,181.09,2.96]
[1755675180315,140.4015,181.1,181.09,2.96]
[1755675180521,134.88,181.1,181.09,2.96]
[1755675185217,134.88,181.1,181.07,2.93781145]
[1755675185518,140.4016,181.1,181.07,2.93781145]
[1755675187620,5.5222,181.08,181.07,0.03781145]
[1755675187826,8.5322,181.08,181.07,0.03781145]
[1755675201538,5.5222,181.08,181.07,0.03781145]
[1755675201736,5.5222,181.08,181.07,2.93781145]
[1755675202141,5.5222,181.08,181.07,0.03781145]
[1755675202841,8.5322,181.08,181.07,0.03781145]
[1755675203538,5.5222,181.08,181.07,0.03781145]
[1755675204142,5.44714083,181.14,181.08,2.9]
[1755675204436,134.8,181.13,181.09,2.9]
[1755675204636,134.8,181.13,181.07,0.03781145]
[1755675204838,3.01,181.1,181.07,2.93781145]
[1755675205141,3.01,181.1,181.08,2.9]
[1755675205337,137.81,181.13,181.08,2.9]
[1755675205538,5.5221,181.09,181.08,2.9]
[1755675207337,134.8,181.13,181.07,0.03781145]
[1755675207338,5.5216,181.1,181.07,0.03781145]
[1755675207542,5.5216,181.1,181.09,2.9]
[1755675213440,137.86,181.13,181.07,0.03781145]
[1755675213645,3.06,181.12,181.07,0.03781145]
[1755675213846,2.43714083,181.11,181.07,0.03781145]
[1755675214047,5.5222,181.08,181.07,3.03781145]
[1755675214247,140.3222,181.08,181.07,3.03781145]
[1755675216645,140.3222,181.08,181.07,0.03781145]
[1755675216646,143.3822,181.08,181.07,0.03781145]
[1755675218143,143.3822,181.08,181.07,1.145e-05]
[1755675219351,145.81934083,181.08,181.07,1.145e-05]
[1755675222352,3.06,181.07,180.99,3.0]
[1755675222946,5.5242,181.02,181.0,3.0]
[1755675223247,3.06,181.01,180.94,11.70230937]
[1755675223453,3.06,181.01,180.95,3.0]
[1755675223850,5.5246,181.0,180.95,3.0]
[1755675224043,134.78,181.02,180.96,3.0]
[1755675224249,5.5248,181.0,180.97,3.0]
[1755675224450,134.78,181.02,180.96,3.0]
[1755675224651,0.04162291,181.01,180.92,8.6131502]
[1755675224846,5.56612291,181.01,180.95,5.526]
[1755675225156,5.56612291,181.01,180.99,3.0]
[1755675225952,5.5246,181.0,180.96,3.0]
[1755675226256,3.06,181.0,180.97,3.0]
[1755675226458,5.5252,180.98,180.94,3.0]
[1755675226659,5.5252,180.98,180.92,5.527]
[1755675226856,5.5265,180.94,180.92,3.0]
[1755675227053,5.5265,180.94,180.93,3.0]
[1755675228060,138.02,180.94,180.88,3.0]
[1755675228757,5.5273,180.92,180.86,5.5286]
[1755675228958,5.5273,180.92,180.88,3.0]
[1755675229160,0.04037281,180.93,180.88,3.0]
[1755675229961,0.04037281,180.93,180.84,0.96108702]
[1755675230256,3.10037281,180.93,180.84,0.96108702]
[1755675230460,3.10037281,180.93,180.89,3.0]
[1755675230664,5.5271,180.92,180.9,3.0]
[1755675230857,0.04037281,180.93,180.91,3.0]
[1755675231254,5.56717281,180.93,180.91,3.0]
[1755675232059,5.527,180.92,180.91,3.0]
[1755675232259,5.527,180.92,180.84,0.96108702]
[1755675232461,5.527,180.92,180.89,3.0]
[1755675232860,5.5274,180.91,180.89,3.0]
[1755675235361,5.5271,180.92,180.89,3.0]
[1755675235568,0.04037281,180.93,180.85,5.529]
[1755675235763,3.06,180.92,180.85,8.529]
[1755675236060,5.5276,180.91,180.85,8.529]
[1755675236459,3.06,180.92,180.85,3.0]
[1755675237366,3.06,180.92,180.84,3.0]
[1755675238066,0.03916565,180.9,180.84,3.0]
[1755675238267,5.56686565,180.9,180.84,8.5294]
[1755675238562,0.03916565,180.9,180.84,8.5294]
[1755675238967,5.528,180.89,180.84,3.0]
[1755675239162,5.528,180.89,180.86,2.87]
[1755675239666,8.448,180.89,180.86,2.87]
[1755675240066,5.5283,180.88,180.82,5.53]
[1755675240265,8.4483,180.88,180.84,2.87]
[1755675240565,5.528,180.89,180.86,2.87]
[1755675240767,8.448,180.89,180.86,2.87]
[1755675241466,0.03916565,180.9,180.82,2.43714083]
[1755675241967,2.92,180.92,180.86,2.87]
[1755675242164,0.03563231,180.88,180.86,2.87]
[1755675243170,2.95563231,180.88,180.8,138.17934394]
[1755675243371,2.95563231,180.88,180.81,2.87]
[1755675244274,8.48413231,180.88,180.82,5.53]
[1755675244572,2.95563231,180.88,180.81,2.87]
[1755675245067,0.03563231,180.88,180.8,138.17934394]
[1755675245271,0.03563231,180.88,180.81,2.87]
[1755675245679,0.03563231,180.88,180.8,138.17934394]
[1755675245680,0.03563231,180.88,180.83,5.5295]
[1755675245972,0.03563231,180.88,180.85,2.87]
[1755675247072,8.48413231,180.88,180.85,2.87]
[1755675247273,2.95563231,180.88,180.85,2.87]
[1755675247973,5.5286,180.87,180.85,2.87]
[1755675251270,2.95563231,180.88,180.8,138.17934394]
[1755675251271,5.5291,180.86,180.83,2.87]
[1755675251572,2.92,180.86,180.83,2.87]
[1755675252176,8.449,180.86,180.83,2.87]
[1755675252674,8.449,180.86,180.82,2.87]
[1755675253076,8.4492,180.85,180.82,2.87]
[1755675254277,5.5289,180.86,180.79,2.87]
[1755675254471,5.5289,180.86,180.8,5.5305]
[1755675254671,2.92,180.86,180.82,2.87]
[1755675254872,8.4494,180.85,180.82,2.87]
[1755675255071,8.48443722,180.85,180.82,2.87]
[1755675255879,5.5295,180.84,180.79,2.87]
[1755675256176,5.5295,180.84,180.78,2.43714083]
[1755675256177,8.4495,180.84,180.81,2.87]
[1755675256372,2.92,180.84,180.81,2.87]
[1755675257976,8.4495,180.84,180.81,2.87]
[1755675258172,2.92,180.84,180.8,5.5307]
[1755675258377,2.92,180.84,180.81,2.87]
[1755675258879,2.92,180.84,180.82,2.87]
[1755675259285,2.92,180.84,180.8,5.5307]
[1755675259686,2.92,180.84,180.81,2.91071571]
[1755675260175,5.56433722,180.85,180.81,2.91071571]
[1755675260371,5.56433722,180.85,180.83,2.87]
[1755675260879,8.48433722,180.85,180.83,2.87]
[1755675261384,5.56433722,180.85,180.81,2.91071571]
[1755675261586,5.5295,180.84,180.81,2.91071571]
[1755675261781,8.4495,180.84,180.81,2.91071571]
[1755675262479,2.92,180.82,180.81,0.04071571]
[1755675263382,2.92,180.83,180.81,0.04071571]
[1755675263786,8.45,180.83,180.81,0.04071571]
[1755675266381,8.4501,180.82,180.81,0.04071571]
[1755675267384,2.92,180.82,180.81,0.04071571]
[1755675270989,2.94503722,180.85,180.82,2.93]
[1755675271183,2.94503722,180.85,180.81,0.04071571]
[1755675271184,0.03503722,180.85,180.83,2.93]
[1755675271377,0.03503722,180.85,180.84,8.4595]
[1755675271775,0.03503722,180.85,180.84,2.93]
[1755675273181,0.03503722,180.85,180.82,2.93]
[1755675273387,2.94503722,180.85,180.81,2.97071571]
[1755675273582,2.94503722,180.85,180.82,2.93]
[1755675273784,0.03503722,180.85,180.83,2.93]
[1755675276384,2.94503722,180.85,180.81,8.50111571]
[1755675276689,2.94503722,180.85,180.81,2.97071571]
[1755675277587,2.94503722,180.85,180.82,2.93]
[1755675277793,0.03503722,180.85,180.83,2.93]
[1755675278291,2.94503722,180.85,180.81,6.21672508]
[1755675278491,2.94503722,180.85,180.82,2.93]
[1755675280194,2.91,180.83,180.81,0.04071571]
[1755675281786,5.5296,180.84,180.81,0.04071571]
[1755675281993,5.5296,180.84,180.81,2.97071571]
[1755675282294,0.03503722,180.85,180.81,2.97071571]
[1755675282295,2.94503722,180.85,180.81,2.97071571]
[1755675282989,8.47433722,180.85,180.81,2.97071571]
[1755675284500,2.94503722,180.85,180.81,2.97071571]
[1755675285393,0.03503722,180.85,180.81,0.04071571]
[1755675285699,0.03503722,180.85,180.83,2.93]
[1755675286090,2.94503722,180.85,180.82,5.5298]
[1755675286290,2.94503722,180.85,180.82,8.4598]
[1755675287196,0.03503722,180.85,180.83,2.93]
[1755675287398,0.03503722,180.85,180.83,5.5297]
[1755675287698,0.03503722,180.85,180.84,2.93]
[1755675288093,0.03503722,180.85,180.83,5.5297]
[1755675288289,0.03503722,180.85,180.84,2.93]
[1755675288993,0.03503722,180.85,180.82,6.17600937]
[1755675288994,2.94503722,180.85,180.82,8.46]
[1755675289197,2.94503722,180.85,180.82,5.53]
[1755675289400,0.03503722,180.85,180.83,2.93]
[1755675292896,2.91,180.84,180.81,14.67702508]
[1755675293399,2.91,180.83,180.81,2.97071571]
[1755675294103,2.91,180.84,180.81,2.97071571]
[1755675296000,2.91,180.84,180.81,0.04071571]
[1755675296303,2.91,180.84,180.81,2.97071571]
[1755675297398,0.03503722,180.85,180.81,0.04071571]
[1755675297794,2.91,180.82,180.81,0.04071571]
[1755675300404,8.4401,180.82,180.81,0.04071571]
[1755675302105,8.6401,180.82,180.81,0.04071571]
[1755675305712,0.03503722,180.85,180.81,0.04071571]
[1755675305918,0.03503722,180.85,180.83,3.05]
[1755675306318,3.11,180.84,180.81,0.04071571]
[1755675306516,2.47217805,180.85,180.81,0.04071571]
[1755675306719,3.11,180.82,180.81,0.04071571]
[1755675307318,8.6401,180.82,180.81,0.04071571]
[1755675315922,5.5315,180.78,180.73,14.75870937]
[1755675316122,3.11,180.78,180.73,5.5327]
[1755675316316,2.47217805,180.85,180.74,3.05]
[1755675316317,3.11,180.77,180.74,3.05]
[1755675316623,3.11,180.77,180.74,9.22600937]
[1755675317223,3.14716864,180.77,180.74,9.22600937]
[1755675318031,8.67886864,180.77,180.75,3.05]
[1755675319537,5.5321,180.76,180.74,6.17600937]
[1755675319830,0.03716864,180.77,180.74,6.17600937]
[1755675319831,0.03716864,180.77,180.74,4.63890103]
[1755675320026,0.03716864,180.77,180.72,4.63890103]
[1755675320426,5.5328,180.74,180.73,3.05]
[1755675320936,5.5328,180.74,180.72,4.63890103]
[1755675321427,5.5328,180.74,180.72,3.05]
[1755675323237,8.6428,180.74,180.71,4.63890103]
[1755675323431,8.6428,180.74,180.71,7.68890103]
[1755675324129,3.11,180.76,180.7,4.63890103]
[1755675324439,3.11,180.76,180.69,4.63890103]
[1755675324624,3.11,180.76,180.7,3.05]
[1755675325132,0.03716864,180.77,180.7,3.05]
[1755675325133,0.03716864,180.77,180.7,5.48714083]
[1755675325430,0.03716864,180.77,180.76,7.68890103]
[1755675325936,8.6405,180.81,180.77,3.05]
[1755675326133,0.0374292,180.78,180.77,3.05]
[1755675328040,3.1474292,180.78,180.74,3.05]
[1755675328735,3.1474292,180.78,180.73,10.17160103]
[1755675328934,3.1474292,180.78,180.75,3.11]
[1755675330328,8.6788292,180.78,180.75,3.11]
[1755675330538,3.03,180.77,180.73,7.74890103]
[1755675330837,3.03,180.77,180.74,3.11]
[1755675331838,3.03,180.77,180.74,7.74890103]
[1755675332241,8.5617,180.77,180.74,7.74890103]
[1755675333332,3.03,180.77,180.74,7.74890103]
[1755675333537,3.03,180.77,180.71,6.17600937]
[1755675333538,3.03,180.76,180.71,4.63890103]
[1755675333840,3.03,180.77,180.71,4.63890103]
[1755675334040,5.5327,180.74,180.71,4.63890103]
[1755675334238,8.5627,180.74,180.71,7.74890103]
[1755675334433,3.03,180.74,180.71,3.11]
[1755675334836,5.5329,180.73,180.71,3.11]
[1755675335543,0.03626037,180.74,180.69,7.74890103]
[1755675335740,3.03,180.73,180.7,3.11]
[1755675336243,5.5333,180.72,180.7,3.11]
[1755675336542,0.03626037,180.74,180.69,4.63890103]
[1755675336846,0.03626037,180.74,180.71,7.74890103]
[1755675337040,3.03,180.73,180.69,4.63890103]
[1755675337342,0.03626037,180.74,180.71,3.11]
[1755675337536,0.03626037,180.74,180.69,4.63890103]
[1755675337740,3.03,180.73,180.69,7.74890103]
[1755675338133,3.03,180.72,180.69,7.74890103]
[1755675338339,8.5633,180.72,180.69,7.74890103]
[1755675338538,3.06626037,180.74,180.7,3.11]
[1755675338844,0.03626037,180.74,180.71,5.5333]
[1755675339043,0.03626037,180.74,180.72,3.11]
[1755675339945,0.03626037,180.74,180.7,5.5335]
[1755675340144,0.03626037,180.74,180.72,3.11]
[1755675340337,0.03626037,180.74,180.73,3.11]
[1755675340736,0.03626037,180.74,180.7,10.17240103]
[1755675340948,0.03626037,180.74,180.71,3.11]
[1755675341147,8.59876037,180.74,180.71,3.11]
[1755675341343,8.59876037,180.74,180.7,7.74890103]
[1755675341649,5.5328,180.73,180.7,7.74890103]
[1755675342544,8.5629,180.73,180.7,3.11]
[1755675343444,5.5331,180.72,180.7,3.11]
[1755675345251,5.5334,180.71,180.69,4.63890103]
[1755675345456,2.05935887,180.71,180.7,4.36216988]
[1755675345950,0.03626037,180.74,180.7,4.36216988]
[1755675346150,5.5333,180.72,180.71,10.54751504]
[1755675346945,5.5333,180.72,180.71,6.18534516]
[1755675348250,8.5633,180.72,180.71,6.18534516]
[1755675348549,5.5334,180.71,180.7,6.18534516]
[1755675351050,8.5634,180.71,180.7,6.18534516]
[1755675351254,8.5634,180.71,180.69,6.18534516]
[1755675353559,8.5637,180.7,180.69,6.18534516]
[1755675355359,8.5641,180.69,180.68,6.18534516]
[1755675355556,0.03626037,180.74,180.65,12.3764353]
[1755675355557,3.03,180.68,180.67,6.18534516]
[1755675357156,3.03,180.68,180.65,9.29534516]
[1755675357861,5.535,180.67,180.65,9.29534516]
[1755675358967,5.535,180.67,180.66,3.02]
[1755675359163,5.5344,180.68,180.67,3.02]
[1755675360157,5.57380818,180.69,180.67,3.02]
[1755675360357,0.03970818,180.69,180.68,7.66319533]
[1755675360562,0.03970818,180.69,180.68,3.02]
[1755675360762,0.03970818,180.69,180.68,9.20534516]
[1755675361562,5.57380818,180.69,180.67,6.18534516]
[1755675361763,0.03970818,180.69,180.68,3.02]
[1755675362358,0.03970818,180.69,180.68,9.20534516]
[1755675367567,0.03970818,180.69,180.68,3.02]
[1755675367767,3.02,180.76,180.69,3.02]
[1755675368072,3.02,180.79,180.73,4.64203338]
[1755675368674,5.5326,180.74,180.73,4.64203338]
[1755675369468,8.5526,180.74,180.73,4.64203338]
[1755675369669,8.5528,180.73,180.72,4.64203338]
[1755675369975,2.43714083,180.77,180.69,6.18937784]
[1755675369976,3.02,180.72,180.71,4.64203338]
[1755675370871,8.5531,180.72,180.71,4.64203338]
[1755675371471,5.5334,180.71,180.7,4.64203338]
[1755675371671,0.03509182,180.73,180.68,6.18937784]
[1755675371971,0.03509182,180.73,180.71,4.6459222]
[1755675372170,8.5533,180.72,180.71,4.6459222]
[1755675373162,5.5333,180.72,180.71,4.6459222]
[1755675373762,0.03509182,180.73,180.72,3.02]
[1755675374277,0.03509182,180.73,180.72,14.72357613]
[1755675374569,0.03509182,180.73,180.72,8.5531]
[1755675374770,0.03509182,180.73,180.72,3.02]
[1755675375277,3.05509182,180.73,180.71,6.19447447]
[1755675375478,3.05509182,180.73,180.7,4.64878063]
[1755675375976,5.5334,180.72,180.7,4.64878063]
[1755675376174,8.5534,180.72,180.7,4.64878063]
[1755675376376,3.02,180.72,180.7,4.64878063]
[1755675376971,5.5334,180.71,180.7,4.64878063]
[1755675377175,0.03509182,180.73,180.7,4.64878063]
[1755675377377,3.05509182,180.73,180.7,4.64878063]
[1755675377577,5.5334,180.71,180.7,4.64878063]
[1755675380884,5.5332,180.72,180.7,7.66878063]
[1755675382288,5.5334,180.71,180.7,4.64878063]
[1755675383181,8.5534,180.71,180.7,4.64878063]
[1755675383582,5.5337,180.7,180.69,4.64878063]
[1755675383777,8.5537,180.7,180.69,4.64878063]
[1755675384483,5.5341,180.69,180.68,4.64878063]
[1755675387597,8.5541,180.69,180.68,4.64878063]
[1755675390686,5.5341,180.69,180.68,4.64878063]
[1755675391796,5.5341,180.69,180.68,7.60878063]
[1755675393091,5.5335,180.71,180.69,2.96]
[1755675393295,5.5335,180.71,180.7,2.96]
[1755675393789,5.5332,180.72,180.69,4.64878063]
[1755675393995,0.03509182,180.73,180.69,4.64878063]
[1755675394195,0.03509182,180.73,180.71,2.96]
[1755675394592,5.56809182,180.73,180.71,2.96]
[1755675395393,5.5331,180.72,180.71,2.96]
[1755675395792,5.5336,180.71,180.69,4.64878063]
[1755675395998,0.03509182,180.73,180.69,4.64878063]
[1755675396393,3.03,180.71,180.69,4.64878063]
[1755675396698,8.5637,180.7,180.69,4.64878063]
[1755675397188,5.5337,180.7,180.69,4.64878063]
[1755675399094,8.5637,180.7,180.69,4.64878063]
[1755675399296,5.5341,180.69,180.68,4.64878063]
[1755675399598,0.03509182,180.73,180.68,7.60878063]
[1755675399794,3.03,180.72,180.69,7.61457735]
[1755675399989,3.03,180.71,180.69,4.65457735]
[1755675400302,3.06509182,180.73,180.7,2.96]
[1755675400802,5.5334,180.71,180.69,4.65457735]
[1755675401000,5.5334,180.71,180.69,7.61457735]
[1755675403397,5.5338,180.7,180.69,7.61457735]
[1755675403602,5.5338,180.7,180.69,4.65457735]
[1755675403801,5.5338,180.7,180.69,7.61457735]
[1755675404504,5.5338,180.7,180.69,4.65457735]
[1755675405300,8.5638,180.7,180.69,4.65457735]
[1755675405493,5.5346,180.68,180.64,6.19447447]
[1755675405698,8.5646,180.68,180.65,2.96]
[1755675406000,5.5346,180.68,180.66,2.96]
[1755675406201,5.5347,180.67,180.65,2.96]
[1755675406602,5.5347,180.67,180.66,2.96]
[1755675407503,5.535,180.66,180.63,9.15447447]
[1755675407704,5.535,180.66,180.64,2.96]
[1755675408901,5.535,180.66,180.63,6.19447447]
[1755675409100,3.03,180.67,180.61,6.19447447]
[1755675409401,0.03867522,180.68,180.62,2.96]
[1755675409604,5.5353,180.65,180.62,2.96]
[1755675409798,5.5353,180.65,180.61,6.19447447]
[1755675410002,5.5353,180.65,180.62,2.96]
[1755675410201,3.03,180.66,180.6,6.19447447]
[1755675410409,3.03,180.66,180.6,2.96]
[1755675410804,3.03,180.66,180.59,11.73157447]
[1755675411001,3.03,180.66,180.6,2.96]
[1755675412306,5.5357,180.64,180.6,5.5367]
[1755675412503,3.03,180.66,180.62,2.96]
[1755675412701,5.5353,180.65,180.62,2.96]
[1755675413097,8.5653,180.65,180.62,2.96]
[1755675413303,3.03,180.66,180.59,9.15447447]
[1755675413506,5.536,180.63,180.6,2.96]
[1755675414005,0.04177974,180.63,180.6,2.96]
[1755675414205,0.04177974,180.63,180.6,6.19447447]
[1755675414404,0.04177974,180.63,180.62,2.96]
[1755675417809,0.04177974,180.63,180.6,5.5368]
[1755675418010,0.04177974,180.63,180.62,2.96]
[1755675420204,0.04177974,180.63,180.62,8.4962]
[1755675420610,0.04177974,180.63,180.62,14.69067447]
[1755675422309,8.5339,180.7,180.66,5.5349]
[1755675422506,8.5339,180.7,180.67,3.0]
[1755675422913,5.5341,180.69,180.65,5.5352]
[1755675423214,3.0,180.68,180.65,3.0]
[1755675423600,8.5344,180.68,180.65,3.04154291]
[1755675423807,3.0,180.68,180.65,3.04154291]
[1755675424004,3.0,180.71,180.66,3.0]
[1755675424209,8.5339,180.7,180.66,3.0]
[1755675424814,8.5339,180.7,180.66,3.04098771]
[1755675425013,3.0,180.69,180.66,3.04098771]
[1755675425909,8.5341,180.69,180.66,3.04098771]
[1755675426717,3.0,180.69,180.66,3.04098771]
[1755675427416,3.0,180.75,180.67,3.0]
[1755675427916,135.48,180.77,180.7,8.5337]
[1755675427917,3.0,180.74,180.7,8.5337]
[1755675428111,138.48,180.77,180.69,0.0360756]
[1755675428315,138.48,180.77,180.7,3.0]
[1755675429313,8.5322,180.75,180.71,5.5333]
[1755675429513,8.5322,180.75,180.72,3.0]
[1755675432817,135.48,180.77,180.73,3.0]
[1755675433018,371.76,180.82,180.74,3.0]
[1755675433019,3.0,180.81,180.74,3.0]
[1755675433319,371.76,180.82,180.71,5.5332]
[1755675433320,5.5321,180.76,180.71,5.5332]
[1755675433522,3.0,180.78,180.76,0.04140971]
[1755675433716,5.5316,180.77,180.76,0.04140971]
[1755675433925,8.5316,180.77,180.73,3.0]
[1755675434118,8.5316,180.77,180.75,0.03529509]
[1755675435222,3.0,180.76,180.75,0.03529509]
[1755675436022,8.5319,180.76,180.75,0.03529509]
[1755675452434,5.5319,180.76,180.75,0.03529509]
[1755675453328,5.5319,180.76,180.75,3.02529509]
[1755675454929,135.38,180.77,180.76,2.99]
[1755675455236,374.85,180.82,180.76,2.99]
[1755675455434,5.5312,180.79,180.77,2.99]
[1755675455629,5.5312,180.79,180.75,0.03529509]
[1755675455931,3.09,180.8,180.75,3.02529509]
[1755675456132,3.09,180.78,180.75,3.02529509]
[1755675457041,5.5314,180.78,180.76,2.99]
[1755675459039,5.5314,180.78,180.77,2.99]
[1755675459536,5.5311,180.79,180.77,2.99]
[1755675460740,5.5311,180.79,180.75,5.56739509]
[1755675460942,5.5311,180.79,180.78,2.99]
[1755675462343,5.5307,180.8,180.79,2.99]
[1755675464034,5.5307,180.8,180.75,5.56739509]
[1755675464441,5.5307,180.8,180.78,2.99]
[1755675465238,3.09,180.8,180.78,2.99]